bitfinex/quotes_BTCUSD_20251209
["timestamp","ask_amount","ask_price","bid_price","bid_amount"]
[1765257496697,0.03982641,89693.0,89692.0,1.53544955]
[1765257496940,0.03982641,89693.0,89692.0,1.28737368]
[1765257497238,0.03882641,89693.0,89692.0,1.28437368]
[1765257497433,0.03882641,89693.0,89692.0,1.28737368]
[1765257497608,0.03982641,89693.0,89692.0,1.28737368]
[1765257498606,0.03882641,89693.0,89692.0,1.28437368]
[1765257499072,0.03982641,89693.0,89692.0,1.28737368]
[1765257499435,0.03982641,89693.0,89692.0,1.30966368]
[1765257499638,0.03982641,89693.0,89692.0,1.28737368]
[1765257500238,0.03882641,89693.0,89692.0,1.28437368]
[1765257500505,0.03882641,89693.0,89692.0,1.30133368]
[1765257500506,0.03582641,89693.0,89692.0,1.30133368]
[1765257500781,0.03582641,89693.0,89692.0,1.30633368]
[1765257500782,0.03882641,89693.0,89692.0,1.30633368]
[1765257501031,0.03882641,89693.0,89692.0,0.82297437]
[1765257501298,0.03882641,89693.0,89692.0,0.83297287]
[1765257501503,0.03882641,89693.0,89692.0,0.84497069]
[1765257501718,0.03882641,89693.0,89692.0,0.82297469]
[1765257501933,0.03882641,89693.0,89692.0,0.84497069]
[1765257502367,0.03882641,89693.0,89692.0,1.24497069]
[1765257503116,0.03882641,89693.0,89692.0,1.63049368]
[1765257504337,0.0004,89720.0,89692.0,1.63049368]
[1765257504338,0.0004,89720.0,89719.0,0.344996]
[1765257504569,0.0004,89720.0,89719.0,1.16297069]
[1765257505194,0.0004,89720.0,89719.0,0.78208969]
[1765257505536,0.00178726,89720.0,89719.0,0.78208969]
[1765257505936,0.00578726,89720.0,89719.0,0.78408969]
[1765257506586,0.00678726,89720.0,89719.0,0.78608969]
[1765257506790,0.00678726,89720.0,89719.0,1.18608969]
[1765257507192,0.0111392,89773.0,89761.0,0.02199601]
[1765257507402,0.01113895,89775.0,89763.0,0.22280895]
[1765257507403,0.00161287,89771.0,89763.0,0.22280895]
[1765257507651,0.00161287,89771.0,89770.0,0.02199601]
[1765257508378,0.23727996,89790.0,89778.0,0.01113858]
[1765257508617,0.01113722,89789.0,89779.0,0.01792]
[1765257508815,0.01113722,89789.0,89774.0,0.22278036]
[1765257508816,0.00161287,89789.0,89781.0,0.22276428]
[1765257509017,0.00161287,89789.0,89785.0,0.01113771]
[1765257509221,0.00161287,89789.0,89788.0,0.0222917]
[1765257509688,0.00161287,89789.0,89788.0,0.6852617]
[1765257509884,0.00161287,89789.0,89788.0,0.93000461]
[1765257510328,0.01561287,89789.0,89788.0,0.7092577]
[1765257510528,0.014,89789.0,89788.0,0.7092577]
[1765257511522,0.011,89789.0,89788.0,0.7092577]
[1765257511723,0.011,89789.0,89788.0,0.77178069]
[1765257511935,0.014,89789.0,89788.0,0.77278069]
[1765257512141,0.003,89789.0,89788.0,0.77078069]
[1765257512449,0.00051625,89790.0,89789.0,0.97023342]
[1765257513113,0.00051625,89790.0,89789.0,0.90771043]
[1765257513344,0.00051625,89790.0,89789.0,0.92563043]
[1765257514853,0.00051625,89790.0,89789.0,0.92663043]
[1765257515022,0.00651625,89790.0,89789.0,0.92763043]
[1765257515833,0.00651625,89790.0,89789.0,0.99015342]
[1765257516239,0.00943574,89790.0,89789.0,0.99015342]
[1765257517144,0.00943574,89790.0,89789.0,1.39015342]
[1765257518331,0.00943574,89790.0,89789.0,0.91214999]
[1765257518534,0.00943574,89790.0,89789.0,1.13489442]
[1765257521147,0.00943574,89790.0,89789.0,0.73489442]
[1765257524030,0.2,89800.0,89799.0,0.71494961]
[1765257524212,0.2,89800.0,89799.0,0.73282961]
[1765257524418,0.20030078,89800.0,89799.0,0.23282999]
[1765257525000,0.20030078,89800.0,89799.0,0.45554961]
[1765257525399,0.20030078,89800.0,89799.0,0.45654961]
[1765257525595,0.20530078,89800.0,89799.0,0.46700956]
[1765257525809,0.20530078,89800.0,89799.0,0.46800956]
[1765257526384,0.17189752,89800.0,89799.0,0.81329956]
[1765257526581,0.13849426,89800.0,89799.0,0.81329956]
[1765257526784,0.100091,89800.0,89799.0,0.81229956]
[1765257526988,0.06668774,89800.0,89799.0,0.81129956]
[1765257527297,0.03528448,89800.0,89799.0,0.81729956]
[1765257527498,0.00188848,89800.0,89799.0,0.81729956]
[1765257527699,0.00088848,89800.0,89799.0,0.81329956]
[1765257527900,0.01113102,89839.0,89829.0,0.01113226]
[1765257528162,0.01151869,89839.0,89838.0,0.021996]
[1765257528936,0.00038767,89839.0,89838.0,0.021996]
[1765257529176,0.32338767,89839.0,89838.0,0.021996]
[1765257529380,0.32838767,89839.0,89838.0,0.021996]
[1765257529536,0.32338767,89839.0,89838.0,0.021996]
[1765257529967,0.33138767,89839.0,89838.0,0.022996]
[1765257530170,0.00938767,89839.0,89838.0,0.022996]
[1765257530573,0.33138767,89839.0,89838.0,0.022996]
[1765257530973,0.33338767,89839.0,89838.0,0.022996]
[1765257531541,0.33338767,89839.0,89838.0,0.001]
[1765257531763,0.33338767,89839.0,89838.0,0.01099818]
[1765257532083,0.01038767,89839.0,89838.0,0.01099818]
[1765257532828,0.33338767,89839.0,89838.0,0.01099818]
[1765257533311,0.01038767,89839.0,89838.0,2.01099818]
[1765257537423,0.00838767,89839.0,89838.0,2.02138585]
[1765257537622,0.01156015,89839.0,89838.0,2.02138585]
[1765257537823,0.01156015,89839.0,89838.0,2.40690884]
[1765257538056,0.01156015,89839.0,89838.0,2.48676575]
[1765257538232,0.00356015,89839.0,89838.0,2.52330884]
[1765257538623,0.00956015,89839.0,89838.0,2.52330884]
[1765257538822,0.0004,89850.0,89849.0,2.30711467]
[1765257539057,0.00051622,89850.0,89849.0,2.32495467]
[1765257539291,0.0008468,89850.0,89849.0,2.32495467]
[1765257539694,0.0008468,89850.0,89849.0,2.46464467]
[1765257539903,0.0004,89860.0,89859.0,0.22257091]
[1765257540032,0.0004,89860.0,89859.0,2.3070899]
[1765257540230,0.0004,89860.0,89859.0,2.38670919]
[1765257540475,0.0004,89860.0,89859.0,2.46963059]
[1765257540673,0.0004,89860.0,89859.0,2.3900113]
[1765257541079,0.0004,89880.0,89879.0,2.23251956]
[1765257541282,0.00051614,89880.0,89879.0,2.04540211]
[1765257541642,0.00051614,89880.0,89870.0,0.39036327]
[1765257541643,0.00212901,89880.0,89870.0,0.39036327]
[1765257541839,0.01112817,89862.0,89859.0,0.003]
[1765257542046,0.01112792,89864.0,89822.0,0.01113312]
[1765257542047,0.00299997,89830.0,89822.0,0.01113312]
[1765257542246,0.00161287,89830.0,89827.0,0.01113251]
[1765257542548,0.01113238,89828.0,89820.0,1.71776227]
[1765257542874,0.00361285,89830.0,89820.0,1.71776227]
[1765257542875,0.01113226,89829.0,89823.0,1.641698]
[1765257543232,0.01274513,89829.0,89823.0,1.44778367]
[1765257543401,0.00161287,89829.0,89824.0,1.629214]
[1765257543772,0.01113251,89827.0,89824.0,1.443281]
[1765257543989,0.00161287,89829.0,89824.0,1.443281]
[1765257544182,0.00461287,89829.0,89824.0,1.443281]
[1765257544645,0.01161287,89829.0,89828.0,1.597349]
[1765257544883,0.00461287,89829.0,89828.0,1.459005]
[1765257545203,0.01161287,89829.0,89828.0,1.459005]
[1765257545410,0.01,89829.0,89828.0,1.460185]
[1765257545618,0.003,89829.0,89828.0,1.460185]
[1765257545817,0.008,89829.0,89828.0,1.460185]
[1765257546231,0.00299997,89840.0,89839.0,0.00999818]
[1765257546445,0.01112582,89881.0,89872.0,1.15857]
[1765257546659,0.00299997,89890.0,89874.0,0.9487]
[1765257546660,0.22249826,89889.0,89874.0,0.9487]
[1765257546871,0.00299997,89890.0,89874.0,0.975098]
[1765257547087,0.22253624,89873.0,89871.0,0.03340755]
[1765257547306,0.00239998,89880.0,89873.0,0.01112681]
[1765257547515,0.00239998,89880.0,89870.0,0.42348645]
[1765257547727,0.00351611,89880.0,89870.0,0.93330445]
[1765257547942,0.00451614,89880.0,89875.0,0.351654]
[1765257548149,0.323,89876.0,89875.0,0.351654]
[1765257548570,0.48009,89876.0,89875.0,0.351654]
[1765257548791,0.48009,89876.0,89874.0,0.001]
[1765257548792,0.54553129,89875.0,89874.0,0.001]
[1765257548997,0.00199998,89870.0,89861.0,0.406777]
[1765257549339,0.00199998,89870.0,89859.0,0.01112854]
[1765257549340,0.00461284,89870.0,89863.0,0.250607]
[1765257550169,0.00761284,89870.0,89865.0,0.0111278]
[1765257550372,0.003,89870.0,89869.0,0.91771015]
[1765257550583,0.00251612,89880.0,89878.0,0.100186]
[1765257550783,0.00051614,89880.0,89879.0,0.71631638]
[1765257550984,0.00051614,89880.0,89879.0,0.493795]
[1765257551323,0.00141738,89880.0,89879.0,0.71527738]
[1765257551524,0.00303025,89880.0,89879.0,0.220996]
[1765257551725,0.00303025,89880.0,89878.0,0.132696]
[1765257551931,0.00212901,89880.0,89877.0,0.174624]
[1765257552138,0.00312901,89880.0,89878.0,0.147892]
[1765257552542,0.00312901,89880.0,89876.0,0.03312244]
[1765257552765,0.00312901,89880.0,89877.0,0.01112631]
[1765257552967,0.00312901,89880.0,89878.0,0.273497]
[1765257553097,0.00512901,89880.0,89879.0,0.02784321]
[1765257553298,0.00412901,89880.0,89879.0,0.02784321]
[1765257553495,0.00212901,89880.0,89879.0,0.02784321]
[1765257553702,0.00303025,89880.0,89879.0,0.02784321]
[1765257553906,0.00503025,89880.0,89879.0,0.02784321]
[1765257554324,0.00403025,89880.0,89879.0,0.02784321]
[1765257554528,0.00303025,89880.0,89879.0,0.02784321]
[1765257554729,0.01003025,89880.0,89879.0,0.02884321]
[1765257555357,0.01003025,89880.0,89879.0,1.11596721]
[1765257555551,0.01003025,89880.0,89879.0,1.04412421]
[1765257556352,0.00841738,89880.0,89879.0,1.04412421]
[1765257556519,0.00841738,89880.0,89879.0,1.03099321]
[1765257556720,0.00841738,89880.0,89879.0,0.90511421]
[1765257557338,0.00841738,89880.0,89879.0,1.00364165]
[1765257557537,0.00841738,89880.0,89879.0,0.9676372]
[1765257557738,0.01805,89925.0,89918.0,0.01112124]
[1765257557946,0.00020614,89925.0,89922.0,0.01112074]
[1765257558302,0.01112062,89923.0,89917.0,0.562893]
[1765257558430,0.00020614,89925.0,89917.0,0.562893]
[1765257558431,0.01132651,89925.0,89917.0,0.562893]
[1765257558630,0.00020614,89925.0,89918.0,0.377247]
[1765257558867,0.00020614,89925.0,89919.0,0.35616812]
[1765257559084,0.00020614,89925.0,89921.0,0.22241745]
[1765257559240,0.00020614,89925.0,89924.0,0.04983921]
[1765257559646,0.00020614,89925.0,89924.0,0.02784321]
[1765257559845,0.00181901,89925.0,89924.0,0.02784321]
[1765257560046,0.00481901,89925.0,89924.0,0.02784321]
[1765257560473,0.00181901,89925.0,89924.0,0.02784321]
[1765257561090,0.00461287,89925.0,89924.0,0.02784321]
[1765257561298,0.003,89925.0,89924.0,0.02784321]
[1765257561918,0.326,89925.0,89924.0,0.02784321]
[1765257562131,0.326,89925.0,89901.0,0.03896655]
[1765257562132,0.01112235,89909.0,89901.0,0.03896655]
[1765257562317,0.55658221,89905.0,89904.0,0.02784321]
[1765257562485,0.55658221,89905.0,89904.0,0.38645521]
[1765257562686,0.54546198,89903.0,89902.0,0.362952]
[1765257562893,0.323,89903.0,89902.0,0.362952]
[1765257563074,0.323,89903.0,89902.0,0.150432]
[1765257563650,0.001,89909.0,89906.0,0.01112272]
[1765257563861,0.001,89909.0,89906.0,0.525866]
[1765257564041,0.001,89909.0,89906.0,0.53698872]
[1765257564218,0.01112186,89913.0,89907.0,0.306076]
[1765257564423,0.01112198,89912.0,89906.0,0.548082]
[1765257564815,0.0111221,89911.0,89906.0,0.349969]
[1765257565446,0.01112223,89910.0,89906.0,0.349969]
[1765257565667,0.01112235,89909.0,89906.0,0.021996]
[1765257565830,0.01112235,89909.0,89907.0,0.362107]
[1765257566730,0.33412223,89910.0,89907.0,0.362107]
[1765257566934,0.01112248,89908.0,89902.0,0.343916]
[1765257567141,0.01112285,89905.0,89902.0,0.343916]
[1765257567502,0.323,89904.0,89902.0,0.271683]
[1765257567702,0.323,89904.0,89902.0,0.239551]
[1765257568504,0.33412272,89906.0,89902.0,0.239551]
[1765257568752,0.01112285,89905.0,89902.0,0.239551]
[1765257568952,0.01312285,89905.0,89902.0,0.239551]
[1765257569369,0.00069067,89903.0,89902.0,0.239551]
[1765257569572,0.00069067,89903.0,89902.0,0.241551]
[1765257569772,0.00069067,89903.0,89902.0,0.239551]
[1765257570307,0.00069067,89903.0,89902.0,0.240551]
[1765257570507,0.00069067,89903.0,89902.0,0.239551]
[1765257570671,0.00369067,89903.0,89902.0,0.240551]
[1765257571661,0.54915265,89903.0,89902.0,0.228389]
[1765257571863,0.54915265,89903.0,89902.0,0.107509]
[1765257572162,0.61449265,89903.0,89902.0,0.001]
[1765257572362,0.61449265,89903.0,89902.0,0.159907]
[1765257572614,0.61449265,89903.0,89902.0,0.127528]
[1765257573176,0.54915265,89903.0,89902.0,0.127528]
[1765257573425,0.01312345,89900.0,89899.0,0.021996]
[1765257573645,0.01112446,89892.0,89891.0,0.43904]
[1765257573925,0.01112446,89892.0,89891.0,0.37674289]
[1765257574071,0.01112446,89892.0,89891.0,0.102391]
[1765257574281,0.01112446,89892.0,89884.0,0.311861]
[1765257574282,0.0111252,89886.0,89884.0,0.311861]
[1765257574495,0.0111252,89886.0,89885.0,0.021996]
[1765257574696,0.0111252,89886.0,89885.0,0.32347741]
[1765257574973,0.0111252,89886.0,89885.0,0.03351841]
[1765257575134,0.0111252,89886.0,89885.0,0.10822914]
[1765257575750,0.0111252,89886.0,89885.0,0.00011614]
[1765257576004,0.4004652,89886.0,89885.0,0.00011614]
[1765257576380,0.4004652,89886.0,89885.0,0.10682914]
[1765257576590,0.23360088,89897.0,89885.0,0.11795446]
[1765257576795,0.323,89895.0,89886.0,0.3072532]
[1765257576992,0.323,89895.0,89892.0,0.386093]
[1765257577125,0.323,89895.0,89885.0,0.00291]
[1765257577126,0.33412408,89895.0,89888.0,0.302499]
[1765257577322,0.323,89895.0,89890.0,0.203279]
[1765257577549,0.323,89895.0,89891.0,0.35584]
[1765257577757,0.323,89895.0,89889.0,0.01112483]
[1765257577758,0.01112408,89895.0,89890.0,0.366002]
[1765257577964,0.01112396,89896.0,89890.0,0.266826]
[1765257578175,0.01112408,89895.0,89889.0,0.326135]
[1765257578528,0.55760152,89897.0,89892.0,0.01112446]
[1765257578529,0.324,89897.0,89892.0,0.01112446]
[1765257578739,0.01172407,89900.0,89896.0,0.03337394]
[1765257578952,0.01112421,89894.0,89890.0,0.03977744]
[1765257579262,0.01112421,89894.0,89888.0,0.04337212]
[1765257579263,0.22249636,89890.0,89889.0,0.127156]
[1765257579457,0.22249636,89890.0,89889.0,0.001]
[1765257579657,0.22249636,89890.0,89889.0,0.120334]
[1765257579861,0.22249636,89890.0,89888.0,0.03337394]
[1765257580056,0.22249636,89890.0,89889.0,0.107576]
[1765257580265,0.47978,89889.0,89888.0,0.03337394]
[1765257581077,0.01112656,89875.0,89873.0,0.193425]
[1765257581395,0.23366021,89875.0,89873.0,0.122348]
[1765257581564,0.01112656,89875.0,89873.0,0.122348]
[1765257581767,0.22253376,89874.0,89873.0,0.122348]
[1765257581981,0.01112644,89876.0,89873.0,0.106348]
[1765257582188,0.01112681,89873.0,89869.0,0.496035]
[1765257582388,0.01112681,89873.0,89870.0,0.444414]
[1765257582587,0.01112668,89874.0,89870.0,0.444414]
[1765257582793,0.01112668,89874.0,89871.0,0.03340755]
[1765257583009,0.01112668,89874.0,89873.0,0.005]
[1765257583236,0.33412668,89874.0,89873.0,0.121666]
[1765257583460,0.33412668,89874.0,89869.0,0.00011614]
[1765257583461,0.323,89870.0,89869.0,0.00011614]
[1765257583787,0.38552,89870.0,89869.0,0.00011614]
[1765257584874,0.386339,89870.0,89869.0,0.00011614]
[1765257585232,0.389339,89870.0,89869.0,0.00011614]
[1765257586029,0.407259,89870.0,89869.0,0.00011614]
[1765257586232,0.501589,89870.0,89869.0,0.00011614]
[1765257586458,0.502589,89870.0,89869.0,0.00011614]
[1765257586656,0.484669,89870.0,89869.0,0.00011614]
[1765257586840,0.502589,89870.0,89869.0,0.00011614]
[1765257587475,0.499589,89870.0,89869.0,0.00011614]
[1765257587774,0.499589,89870.0,89869.0,0.00111614]
[1765257587775,0.502589,89870.0,89869.0,0.00111614]
[1765257588073,0.501589,89870.0,89869.0,0.00111614]
[1765257588321,0.504589,89870.0,89869.0,0.00111614]
[1765257589903,0.01112978,89849.0,89848.0,0.021996]
[1765257590116,0.55672546,89849.0,89848.0,0.172734]
[1765257590265,0.33412978,89849.0,89848.0,0.157757]
[1765257590999,0.323,89849.0,89848.0,0.157757]
[1765257591394,0.323,89849.0,89848.0,0.160757]
[1765257591574,0.323,89849.0,89848.0,0.173061]
[1765257591774,0.323,89849.0,89848.0,0.154275]
[1765257594615,0.01112805,89863.0,89862.0,0.560815]
[1765257594891,0.323,89863.0,89862.0,0.549426]
[1765257595034,0.323,89863.0,89862.0,0.55021986]
[1765257595235,0.000819,89870.0,89869.0,0.734155]
[1765257595456,0.23366565,89872.0,89871.0,0.656155]
[1765257595692,0.23366565,89872.0,89871.0,0.645674]
[1765257595897,0.55666565,89872.0,89871.0,0.645674]
[1765257596091,0.55666565,89872.0,89871.0,0.324435]
[1765257596251,0.23368234,89866.0,89863.0,0.377723]
[1765257596453,0.55668234,89866.0,89865.0,0.192476]
[1765257596678,0.33412767,89866.0,89865.0,0.192476]
[1765257597468,0.55768124,89866.0,89865.0,0.192476]
[1765257597900,0.55668124,89866.0,89865.0,0.192476]
[1765257598301,0.55868124,89866.0,89865.0,0.192476]
[1765257599069,0.01112792,89864.0,89863.0,0.021996]
[1765257599300,0.01112792,89864.0,89863.0,0.704754]
[1765257599529,0.0111278,89865.0,89864.0,0.021996]
[1765257599766,0.33694667,89866.0,89865.0,0.439814]
[1765257600002,0.33494667,89866.0,89865.0,0.439814]
[1765257600212,0.55750024,89866.0,89865.0,0.165489]
[1765257600405,0.33494667,89866.0,89865.0,0.165489]
[1765257600626,0.323,89866.0,89865.0,0.165489]
[1765257600877,0.323,89866.0,89858.0,0.01112866]
[1765257600878,0.00139901,89880.0,89879.0,1.20374318]
[1765257601044,0.00230886,89880.0,89879.0,0.86788363]
[1765257601278,0.00230886,89880.0,89879.0,0.78215645]
[1765257601492,0.00230886,89880.0,89879.0,0.76881545]
[1765257602509,0.00230886,89880.0,89879.0,0.77881363]
[1765257602711,0.00330886,89880.0,89879.0,0.77881363]
[1765257603314,0.002515,89880.0,89879.0,0.77881363]
[1765257603519,0.003515,89880.0,89879.0,0.77881363]
[1765257604642,0.003515,89880.0,89879.0,0.80110363]
[1765257604846,0.003515,89880.0,89879.0,0.27881363]
[1765257611340,0.003515,89880.0,89879.0,0.29665363]
[1765257612237,0.002515,89880.0,89879.0,0.29665363]
[1765257612442,0.003515,89880.0,89879.0,0.36117662]
[1765257612645,0.002515,89880.0,89879.0,0.36117662]
[1765257613166,0.002515,89880.0,89879.0,0.36617662]
[1765257613398,0.002515,89880.0,89879.0,0.48357662]
[1765257613605,0.002515,89880.0,89879.0,0.36617662]
[1765257614637,0.002515,89880.0,89879.0,0.38846662]
[1765257614858,0.00025833,89880.0,89879.0,0.38846662]
[1765257615961,0.00025833,89880.0,89879.0,0.03983601]
[1765257616162,0.00025833,89880.0,89879.0,2.03983601]
[1765257616363,0.22253376,89874.0,89873.0,0.615915]
[1765257616626,0.01112631,89877.0,89876.0,1.25334818]
[1765257616797,0.23365504,89877.0,89876.0,1.25334818]
[1765257617409,0.23526791,89877.0,89876.0,0.46228592]
[1765257617590,0.23526791,89877.0,89875.0,0.44012492]
[1765257617781,0.23526791,89877.0,89875.0,0.40031]
[1765257618223,0.23526791,89877.0,89875.0,0.44012492]
[1765257618433,0.23526791,89877.0,89875.0,0.40031]
[1765257618635,0.23526791,89877.0,89876.0,0.73811101]
[1765257618835,0.23365504,89877.0,89876.0,0.63347201]
[1765257619154,0.23965504,89877.0,89876.0,0.63347201]
[1765257619350,0.23965504,89877.0,89876.0,0.52851401]
[1765257619512,0.23665504,89877.0,89876.0,0.51437601]
[1765257619709,0.23865504,89877.0,89876.0,0.51437601]
[1765257619920,0.23865504,89877.0,89876.0,0.51537601]
[1765257619921,0.24065504,89877.0,89876.0,0.51537601]
[1765257620126,0.23565504,89877.0,89876.0,0.51537601]
[1765257620358,0.23965504,89877.0,89876.0,0.51537601]
[1765257621000,0.24126791,89877.0,89876.0,0.55522081]
[1765257621119,0.23926791,89877.0,89876.0,0.5322248]
[1765257621323,0.24126791,89877.0,89876.0,0.595861]
[1765257621735,0.24126791,89877.0,89876.0,0.56277]
[1765257623740,0.24126791,89877.0,89876.0,0.03988617]
[1765257623945,0.24126791,89877.0,89876.0,0.28315]
[1765257624281,0.24126791,89877.0,89876.0,0.30514601]
[1765257625137,0.24126791,89877.0,89876.0,0.34504964]
[1765257625340,0.24126791,89877.0,89876.0,0.30514601]
[1765257625546,0.24126791,89877.0,89876.0,0.3450598]
[1765257625973,0.24126791,89877.0,89876.0,0.30514601]
[1765257633636,0.23367267,89870.0,89869.0,0.021996]
[1765257633841,0.23367085,89870.0,89869.0,0.79421818]
[1765257634062,0.23367085,89870.0,89869.0,0.66357418]
[1765257634851,0.23467085,89870.0,89869.0,0.68584418]
[1765257635126,0.23667085,89870.0,89869.0,0.66357418]
[1765257638432,0.23667085,89870.0,89869.0,0.18557018]
[1765257641755,0.003,89870.0,89869.0,0.18557018]
[1765257643842,0.003,89870.0,89869.0,0.268029]
[1765257643977,0.2337015,89859.0,89858.0,0.021996]
[1765257644201,0.2337015,89859.0,89858.0,0.963082]
[1765257645153,0.2337015,89859.0,89858.0,0.022996]
[1765257645354,0.2337015,89859.0,89858.0,1.162712]
[1765257646122,0.2347015,89859.0,89858.0,1.164712]
[1765257646549,0.23469945,89859.0,89858.0,1.164712]
[1765257647148,0.23369945,89859.0,89858.0,1.162712]
[1765257647313,0.01112854,89859.0,89858.0,1.163712]
[1765257647717,0.01112854,89859.0,89858.0,1.162712]
[1765257647972,0.01112829,89861.0,89860.0,0.021996]
[1765257648142,0.01112829,89861.0,89860.0,1.389657]
[1765257649164,0.01112681,89873.0,89870.0,0.00999818]
[1765257649317,0.01112619,89878.0,89877.0,0.021996]
[1765257649521,0.01112619,89878.0,89877.0,1.755572]
[1765257649772,0.22250653,89885.0,89884.0,0.021996]
[1765257649934,0.22250653,89885.0,89884.0,1.75568799]
[1765257650552,0.22549878,89890.0,89884.0,1.75568799]
[1765257650553,0.0111247,89890.0,89885.0,1.755572]
[1765257650726,0.23360518,89896.0,89895.0,0.021996]
[1765257651098,0.23360518,89896.0,89895.0,1.755572]
[1765257651308,0.23360518,89896.0,89895.0,1.248011]
[1765257651643,0.23360518,89896.0,89895.0,0.767582]
[1765257651781,0.2224892,89892.0,89891.0,1.319911]
[1765257651979,0.2224892,89892.0,89891.0,0.614347]
[1765257652218,0.2224892,89892.0,89891.0,0.549955]
[1765257653389,0.2224892,89892.0,89891.0,0.550955]
[1765257653390,0.2244892,89892.0,89891.0,0.550955]
[1765257654614,0.2294892,89892.0,89891.0,0.550955]
[1765257656824,0.2294892,89892.0,89891.0,0.572951]
[1765257657224,0.22984959,89892.0,89891.0,0.572951]
[1765257658492,0.23146246,89892.0,89891.0,0.550955]
[1765257658845,0.23146246,89892.0,89891.0,0.572951]
[1765257661173,0.23146246,89892.0,89891.0,0.61084999]
[1765257661574,0.23146246,89892.0,89891.0,0.550955]
[1765257661891,0.23146246,89892.0,89882.0,0.03340044]
[1765257661892,0.01112582,89881.0,89861.0,0.07961773]
[1765257662091,0.01112582,89881.0,89857.0,0.08400863]
[1765257662092,0.22257091,89859.0,89858.0,1.43472]
[1765257662432,0.22257091,89859.0,89858.0,0.117935]
[1765257662893,0.22257587,89857.0,89856.0,0.154619]
[1765257663103,0.38639,89856.0,89855.0,0.03895446]
[1765257663301,0.38639,89856.0,89855.0,0.15110046]
[1765257663525,0.323,89856.0,89855.0,0.15110046]
[1765257664422,0.327,89856.0,89855.0,0.15252146]
[1765257665478,0.33,89856.0,89855.0,0.15352146]
[1765257665860,0.32888755,89856.0,89855.0,0.15352146]
[1765257667047,0.33050042,89856.0,89855.0,0.15352146]
[1765257670209,0.33050042,89856.0,89855.0,0.17551746]
[1765257670210,0.00861287,89856.0,89855.0,0.17551746]
[1765257670412,0.007,89856.0,89855.0,0.17551746]
[1765257671215,0.00861287,89856.0,89855.0,0.15352146]
[1765257672943,0.07437287,89856.0,89855.0,0.15352146]
[1765257673170,0.39737287,89856.0,89855.0,0.15352146]
[1765257674609,0.50851287,89856.0,89855.0,0.03995446]
[1765257675337,0.50851287,89856.0,89855.0,0.14598346]
[1765257675514,0.41513287,89856.0,89855.0,0.14598346]
[1765257675920,0.41513287,89856.0,89855.0,0.14684946]
[1765257676125,0.34937287,89856.0,89855.0,0.14684946]
[1765257678900,0.33161287,89856.0,89855.0,0.14684946]
[1765257679100,0.34937287,89856.0,89855.0,0.14684946]
[1765257680375,0.34937287,89856.0,89855.0,0.03995446]
[1765257680501,0.34937287,89856.0,89855.0,0.18804446]
[1765257682236,0.33161287,89856.0,89855.0,0.18804446]
[1765257682434,0.00861287,89856.0,89855.0,0.21004046]
[1765257682952,0.33161287,89856.0,89855.0,0.21004046]
[1765257685151,0.007,89856.0,89855.0,0.21004046]
[1765257686791,0.004,89856.0,89855.0,0.20904046]
[1765257687172,0.006,89856.0,89855.0,0.21004046]
[1765257687375,0.002,89856.0,89855.0,0.21004046]
[1765257687672,0.22257587,89857.0,89856.0,1.755572]
[1765257688191,0.22257587,89857.0,89856.0,1.688409]
[1765257688744,0.22457587,89857.0,89856.0,1.689409]
[1765257688990,0.22557587,89857.0,89856.0,1.689409]
[1765257689660,0.22557587,89857.0,89856.0,1.74932841]
[1765257690059,0.22557587,89857.0,89856.0,1.689409]
[1765257691180,0.003,89857.0,89856.0,1.689409]
[1765257691393,0.00031287,89857.0,89856.0,1.689409]
[1765257691597,0.00031287,89857.0,89856.0,1.69521752]
[1765257692211,0.01112668,89874.0,89869.0,0.0111273]
[1765257692409,0.01112644,89876.0,89875.0,1.755572]
[1765257693006,0.01112644,89876.0,89875.0,1.78897516]
[1765257693187,0.23365197,89878.0,89877.0,0.021996]
[1765257693387,0.23365197,89878.0,89877.0,1.81548292]
[1765257694189,0.01112594,89880.0,89879.0,0.021996]
[1765257694391,0.01112594,89880.0,89879.0,1.755572]
[1765257695319,0.001,89880.0,89879.0,1.755572]
[1765257695555,0.001,89880.0,89879.0,1.84888366]
[1765257695768,0.001,89880.0,89879.0,1.78897274]
[1765257695924,0.001,89880.0,89879.0,1.80669274]
[1765257696333,0.003,89880.0,89879.0,1.80669274]
[1765257696526,0.002,89880.0,89879.0,1.80669274]
[1765257696933,8.612e-05,89881.0,89880.0,1.97809091]
[1765257697731,8.612e-05,89881.0,89880.0,1.755572]
[1765257698072,0.00269899,89881.0,89880.0,1.36097818]
[1765257698432,0.00269899,89881.0,89880.0,0.97633118]
[1765257698630,0.00269899,89881.0,89880.0,0.97733118]
[1765257699155,0.00108612,89881.0,89880.0,0.97733118]
[1765257699349,8.612e-05,89881.0,89880.0,0.97733118]
[1765257699671,0.00308612,89881.0,89880.0,0.97733118]
[1765257700072,0.00208612,89881.0,89880.0,0.97633118]
[1765257700372,8.612e-05,89881.0,89880.0,0.97633118]
[1765257700595,0.00308612,89881.0,89880.0,0.97633118]
[1765257700931,0.00369899,89881.0,89880.0,0.97633118]
[1765257701241,0.00569899,89881.0,89880.0,0.97733118]
[1765257703019,0.00569899,89881.0,89880.0,0.89903218]
[1765257703228,0.00569899,89881.0,89880.0,0.88870518]
[1765257704181,0.00569899,89881.0,89880.0,0.85068018]
[1765257704767,0.00569899,89881.0,89880.0,0.862678]
[1765257705194,0.00569899,89881.0,89880.0,0.840682]
[1765257705402,0.22821542,89881.0,89880.0,0.492049]
[1765257706731,0.22821542,89881.0,89880.0,0.195725]
[1765257707713,0.22821542,89881.0,89880.0,0.176278]
[1765257708134,0.22821542,89881.0,89880.0,0.198274]
[1765257709571,0.22821542,89881.0,89880.0,0.18627618]
[1765257713656,0.00408612,89881.0,89880.0,0.40879509]
[1765257714958,0.00408612,89881.0,89880.0,0.73179509]
[1765257716384,0.00408612,89881.0,89880.0,0.50927618]
[1765257716696,0.00408612,89881.0,89880.0,0.54267629]
[1765257716960,0.00408612,89881.0,89880.0,0.7651952]
[1765257717835,0.00408612,89881.0,89880.0,0.54267629]
[1765257721301,0.00408612,89881.0,89880.0,0.62259919]
[1765257721711,0.00408612,89881.0,89880.0,0.54267629]
[1765257722119,0.00408612,89881.0,89880.0,0.274737]
[1765257722120,0.02341899,89881.0,89880.0,0.274737]
[1765257722358,0.18444899,89881.0,89880.0,0.302274]
[1765257723318,0.08736899,89881.0,89880.0,0.302274]
[1765257723736,0.22253129,89875.0,89874.0,0.445384]
[1765257723937,0.22253129,89875.0,89874.0,0.768384]
[1765257724765,0.22653129,89875.0,89874.0,0.769384]
[1765257725372,0.23214416,89875.0,89874.0,0.471192]